fUST/lending_fUST_20240611
["ID","MTS","AMOUNT","RATE_DAILY","PERIOD"]
[328974945,1718037051532,-500.0,0.00020273,2]
[328974946,1718037051543,-648.33,0.00020273,2]
[328974947,1718037051552,-534.18,0.00020273,2]
[328974948,1718037051562,-500.0,0.00020273,2]
[328974949,1718037051573,-793.5,0.00020273,2]
[328974950,1718037051582,-500.0,0.00020273,2]
[328974951,1718037051592,-500.0,0.00020273,2]
[328974952,1718037051602,-500.0,0.00020273,2]
[328974953,1718037051613,-500.0,0.00020273,2]
[328974954,1718037051622,-173.111145,0.00020273,2]
[328974955,1718037051632,-173.111145,0.00020273,2]
[328974956,1718037051642,-151.0,0.00020273,2]
[328974957,1718037051652,-602.022192,0.00020273,2]
[328974958,1718037051662,-540.21,0.00020273,2]
[328974959,1718037051672,-602.022192,0.00020273,2]
[328974960,1718037051683,-151.0,0.00020273,2]
[328974961,1718037051693,-1509.25,0.00020273,2]
[328974962,1718037051705,-2231.15,0.00020273,2]
[328974963,1718037051715,-828.11,0.00020273,2]
[328974964,1718037051725,-500.0,0.00020273,2]
[328974965,1718037051735,-593.77,0.00020273,2]
[328974966,1718037051745,-618.36,0.00020273,2]
[328974967,1718037051755,-500.0,0.00020273,2]
[328974968,1718037051765,-592.24,0.00020273,2]
[328974969,1718037051775,-855.67,0.00020273,2]
[328974970,1718037051784,-3444.78,0.00020273,2]
[328974971,1718037051794,-500.0,0.00020273,2]
[328974972,1718037051804,-500.0,0.00020273,2]
[328974973,1718037051813,-500.0,0.00020273,2]
[328974974,1718037051824,-1588.01,0.00020273,2]
[328974975,1718037051834,-500.0,0.00020273,2]
[328974976,1718037051844,-500.0,0.00020273,2]
[328974977,1718037051855,-1474.98,0.00020273,2]
[328974978,1718037051864,-2564.84,0.00020273,2]
[328974979,1718037051874,-151.0,0.00020273,2]
[328974980,1718037051884,-500.0,0.00020273,2]
[328974981,1718037051893,-209.738757,0.00020273,2]
[328974982,1718037051906,-500.0,0.00020273,2]
[328974983,1718037051915,-209.738757,0.00020273,2]
[328974984,1718037051926,-588.37,0.00020273,2]
[328974985,1718037051938,-500.0,0.00020273,2]
[328974986,1718037051948,-577.8,0.00020273,2]
[328974987,1718037051958,-500.0,0.00020273,2]
[328974988,1718037051968,-151.0,0.00020273,2]
[328974989,1718037051977,-898.77,0.00020273,2]
[328974990,1718037051987,-500.0,0.00020273,2]
[328974991,1718037051997,-272.31,0.00020273,2]
[328974992,1718037052007,-642.66,0.00020273,2]
[328974993,1718037052017,-596.35,0.00020273,2]
[328974994,1718037052027,-2659.29,0.00020273,2]
[328974995,1718037052037,-500.0,0.00020273,2]
[328974996,1718037052047,-500.0,0.00020273,2]
[328974997,1718037052057,-500.0,0.00020273,2]
[328974998,1718037052066,-709.71,0.00020273,2]
[328974999,1718037052076,-1791.39,0.00020273,2]
[328975000,1718037052085,-500.0,0.00020273,2]
[328975001,1718037052095,-500.0,0.00020273,2]
[328975002,1718037052104,-1338.82,0.00020273,2]
[328975003,1718037052114,-500.0,0.00020273,2]
[328975004,1718037052124,-500.0,0.00020273,2]
[328975005,1718037052135,-500.0,0.00020273,2]
[328975006,1718037052144,-500.0,0.00020273,2]
[328975007,1718037052154,-500.0,0.00020273,2]
[328975008,1718037052164,-151.0,0.00020273,2]
[328975009,1718037052174,-500.0,0.00020273,2]
[328975010,1718037052187,-3008.45,0.00020273,2]
[328975011,1718037052197,-907.55,0.00020273,2]
[328975012,1718037052207,-500.0,0.00020273,2]
[328975013,1718037052217,-523.56,0.00020273,2]
[328975014,1718037052228,-500.0,0.00020273,2]
[328975015,1718037052238,-500.0,0.00020273,2]
[328975016,1718037052248,-500.0,0.00020273,2]
[328975017,1718037052259,-300.0,0.0002037,2]
[328975018,1718037052269,-1358.0737431,0.00020545,2]
[328975019,1718037052279,-151.0,0.00020545,2]
[328975020,1718037052289,-337.15869238,0.00020546,2]
[328975021,1718037052300,-10574.09676402,0.00020546,2]
[328975022,1718037052309,-151.0,0.00020546,2]
[328975023,1718037052319,-151.0,0.00020546,2]
[328975024,1718037052329,-151.0,0.00020546,2]
[328975025,1718037052342,-151.0,0.00020546,2]
[328975026,1718037052352,-500.0,0.00020547,2]
[328975027,1718037052362,-500.0,0.00020547,2]
[328975028,1718037052374,-546.17,0.00020547,2]
[328975029,1718037052385,-500.0,0.00020547,2]
[328975030,1718037052396,-500.0,0.00020547,2]
[328975031,1718037052406,-500.0,0.00020547,2]
[328975032,1718037052419,-675.94,0.00020547,2]
[328975033,1718037052433,-238.13000048,0.00020547,2]
[328975034,1718037052443,-500.0,0.00020547,2]
[328975035,1718037052453,-500.0,0.00020547,2]
[328975036,1718037052464,-500.0,0.00020547,2]
[328975037,1718037052475,-500.0,0.00020547,2]
[328975038,1718037052485,-500.0,0.00020547,2]
[328975039,1718037052496,-500.0,0.00020547,2]
[328975040,1718037052507,-648.33,0.00020547,2]
[328975041,1718037052517,-534.18,0.00020547,2]
[328975042,1718037052528,-793.5,0.00020547,2]
[328975043,1718037052539,-500.0,0.00020547,2]
[328975044,1718037052549,-500.0,0.00020547,2]
[328975045,1718037052559,-500.0,0.00020547,2]
[328975046,1718037052569,-439.66822681,0.00020547,2]
[328975047,1718037052579,-173.111145,0.00020547,2]
[328975048,1718037052589,-160.148239,0.00020547,2]
[328975049,1718037052600,-173.111145,0.00020547,2]
[328975050,1718037052610,-151.0,0.00020547,2]
[328975051,1718037052620,-602.022192,0.00020547,2]
[328975052,1718037052631,-540.21,0.00020547,2]
[328975053,1718037052641,-602.022192,0.00020547,2]
[328975054,1718037052651,-1509.25,0.00020547,2]
[328975055,1718037052661,-2231.15,0.00020547,2]
[328975056,1718037052671,-828.11,0.00020547,2]
[328975057,1718037052683,-244.85507706,0.00020547,2]
[328975058,1718037052886,-255.14492294,0.00020547,2]
[328975059,1718037052897,-593.77,0.00020547,2]
[328975060,1718037052909,-500.0,0.00020547,2]
[328975061,1718037052920,-855.67,0.00020547,2]
[328975062,1718037052930,-3444.78,0.00020547,2]
[328975063,1718037052942,-500.0,0.00020547,2]
[328975064,1718037052953,-500.0,0.00020547,2]
[328975065,1718037052963,-1588.01,0.00020547,2]
[328975066,1718037052973,-1474.98,0.00020547,2]
[328975067,1718037052983,-2564.84,0.00020547,2]
[328975068,1718037052993,-151.0,0.00020547,2]
[328975069,1718037053003,-500.0,0.00020547,2]
[328975070,1718037053014,-209.738757,0.00020547,2]
[328975071,1718037053024,-209.738757,0.00020547,2]
[328975072,1718037053034,-588.37,0.00020547,2]
[328975073,1718037053045,-500.0,0.00020547,2]
[328975074,1718037053055,-577.8,0.00020547,2]
[328975075,1718037053065,-577.24,0.00020547,2]
[328975076,1718037053076,-898.77,0.00020547,2]
[328975077,1718037053086,-500.0,0.00020547,2]
[328975078,1718037053097,-596.35,0.00020547,2]
[328975079,1718037053109,-2659.29,0.00020547,2]
[328975080,1718037053120,-500.0,0.00020547,2]
[328975081,1718037053131,-377.75,0.00020547,2]
[328975082,1718037053142,-500.0,0.00020547,2]
[328975083,1718037053152,-709.71,0.00020547,2]
[328975084,1718037053162,-1791.39,0.00020547,2]
[328975085,1718037053172,-500.0,0.00020547,2]
[328975086,1718037053184,-500.0,0.00020547,2]
[328975087,1718037053194,-1338.82,0.00020547,2]
[328975088,1718037053204,-500.0,0.00020547,2]
[328975089,1718037053215,-500.0,0.00020547,2]
[328975090,1718037053226,-602.29,0.00020547,2]
[328975091,1718037053236,-500.0,0.00020547,2]
[328975092,1718037053247,-500.0,0.00020547,2]
[328975093,1718037053257,-500.0,0.00020547,2]
[328975094,1718037053267,-3008.45,0.00020547,2]
[328975095,1718037053277,-907.55,0.00020547,2]
[328975096,1718037053287,-500.0,0.00020547,2]
[328975097,1718037053298,-523.56,0.00020547,2]
[328975098,1718037053308,-500.0,0.00020547,2]
[328975099,1718037053318,-500.0,0.00020547,2]
[328975100,1718037053330,-500.0,0.00020547,2]
[328975101,1718037053343,-587.0,0.00020618,2]
[328975102,1718037053353,-163.05754522,0.00020698,2]
[328975103,1718037053363,-6809.41584162,0.00020699,2]
[328975104,1718037053374,-803.83434727,0.000207,2]
[328975105,1718037053384,-1193.91442707,0.000207,2]
[328975106,1718037053592,-159.55405193,0.000207,2]
[328975107,1718037053602,-1353.468479,0.000207,2]
[328975108,1718037053611,-1353.468479,0.000207,2]
[328975109,1718037053621,-1353.468479,0.000207,2]
[328975110,1718037053632,-1353.468479,0.000207,2]
[328975111,1718037053642,-1353.468479,0.000207,2]
[328975112,1718037053652,-1353.468479,0.000207,2]
[328975113,1718037053662,-1353.468479,0.000207,2]
[328975114,1718037053673,-2063.86985379,0.000207,2]
[328975115,1718037053689,-11418.0698747,0.000207,2]
[328975116,1718037053699,-225.1695884,0.000207,2]
[328975117,1718037053709,-151.0,0.000207,2]
[328975118,1718037053719,-151.0,0.000207,2]
[328975119,1718037053729,-151.0,0.000207,2]
[328975120,1718037053740,-173.111145,0.000207,2]
[328975121,1718037053751,-151.0,0.000207,2]
[328975122,1718037053761,-602.022192,0.000207,2]
[328975123,1718037053771,-602.022192,0.000207,2]
[328975124,1718037053783,-151.0,0.000207,2]
[328975125,1718037053795,-209.738757,0.000207,2]
[328975126,1718037053805,-209.738757,0.000207,2]
[328975127,1718037053815,-151.0,0.000207,2]
[328975128,1718037053826,-151.0,0.000207,2]
[328975129,1718037053837,-500.0,0.00020821,2]
[328975130,1718037053847,-500.0,0.00020821,2]
[328975131,1718037053857,-546.17,0.00020821,2]
[328975132,1718037053867,-445.63,0.00020821,2]
[328975133,1718037053877,-675.94,0.00020821,2]
[328975134,1718037053887,-500.0,0.00020821,2]
[328975135,1718037053897,-500.0,0.00020821,2]
[328975136,1718037053910,-500.0,0.00020821,2]
[328975137,1718037053921,-521.85294456,0.00020821,2]
[328975138,1718037053935,-584.9,0.00020821,2]
[328975139,1718037053945,-648.33,0.00020821,2]
[328975140,1718037053954,-534.18,0.00020821,2]
[328975141,1718037053965,-793.5,0.00020821,2]
[328975142,1718037053974,-317.23,0.00020821,2]
[328975143,1718037053984,-500.0,0.00020821,2]
[328975144,1718037053996,-500.0,0.00020821,2]
[328975145,1718037054006,-540.21,0.00020821,2]
[328975146,1718037054016,-828.11,0.00020821,2]
[328975147,1718037054028,-500.0,0.00020821,2]
[328975148,1718037054040,-593.77,0.00020821,2]
[328975149,1718037054051,-176.94,0.00020821,2]
[328975150,1718037054176,-855.67,0.00020821,2]
[328975151,1718037054191,-3444.78,0.00020821,2]
[328975152,1718037054203,-500.0,0.00020821,2]
[328975153,1718037054214,-960.91517638,0.00020821,2]
[328975154,1718037054354,-542.53558029,0.00019178,2]
[328975155,1718037054365,-627.09482362,0.00020821,2]
[328975156,1718037054378,-1474.98,0.00020821,2]
[328975157,1718037054388,-2333.12551099,0.00020821,2]
[328975158,1718037054401,-231.71448901,0.00020821,2]
[328975159,1718037054413,-151.0,0.00020821,2]
[328975160,1718037054425,-191.78,0.00020821,2]
[328975161,1718037054440,-209.738757,0.00020821,2]
[328975162,1718037054451,-209.738757,0.00020821,2]
[328975163,1718037054461,-588.37,0.00020821,2]
[328975164,1718037054471,-577.8,0.00020821,2]
[328975165,1718037054481,-151.0,0.00020821,2]
[328975166,1718037054491,-898.77,0.00020821,2]
[328975167,1718037054502,-540.86,0.00020821,2]
[328975168,1718037054513,-35.86984143,0.00020821,2]
[328975171,1718037265457,155.01550155,9.999e-05,2]
[328975269,1718037886779,272.8516895,0.00015402,2]
[328975317,1718038233306,-612.735,0.00016011,4]
[328975318,1718038233320,-5375.93393606,0.00016011,4]
[328975319,1718038233332,-300.0,0.00016011,2]
[328975320,1718038233342,-137.26907336,0.00016011,2]
[328975321,1718038233355,-162.73092664,0.00016011,2]
[328975328,1718038233529,-161.28904267,0.00016012,2]
[328975329,1718038233545,-200.0,0.00016012,2]
[328975330,1718038233556,-282.66579838,0.00016012,2]
[328975331,1718038233567,-161.09306543,0.00016012,2]
[328975332,1718038233577,-204.81434597,0.00016012,2]
[328975333,1718038233588,-19310.35733687,0.00016012,2]
[328975334,1718038233598,-164.63552504,0.00016026,2]
[328975335,1718038233608,-24900.0,0.00016029,2]
[328975336,1718038233618,-412.54779118,0.00016833,2]
[328975337,1718038233628,-11098.45664958,0.00017031,2]
[328975338,1718038233638,-1632.58637617,0.00017033,7]
[328975339,1718038233649,-420.0,0.00017612,2]
[328975340,1718038233659,-412.54779111,0.00018571,2]
[328975341,1718038233669,-652.33288272,0.000189,2]
[328975342,1718038233680,-798.14,0.00019168,3]
[328975343,1718038233691,-310.02790252,0.00019175,2]
[328975344,1718038233701,-209.17920224,0.00019175,2]
[328975345,1718038233711,-2120.78795368,0.00019175,2]
[328975346,1718038233722,-1342.40609524,0.00019175,2]
[328975347,1718038233732,-130.89263216,0.00019175,2]
[328975348,1718038233764,-591.06034063,0.00019175,2]
[328975349,1718038233775,-181.91947349,0.00019175,2]
[328975350,1718038233785,-4816.30712337,0.00019178,15]
[328975351,1718038233797,-500.0,0.00019178,2]
[328975352,1718038233807,-500.0,0.00019178,2]
[328975353,1718038233818,-500.0,0.00019178,2]
[328975354,1718038233828,-500.0,0.00019178,2]
[328975355,1718038233838,-500.0,0.00019178,2]
[328975356,1718038233848,-500.0,0.00019178,2]
[328975357,1718038233860,-500.0,0.00019178,2]
[328975358,1718038233870,-500.0,0.00019178,2]
[328975359,1718038233880,-500.0,0.00019178,2]
[328975360,1718038233890,-500.0,0.00019178,2]
[328975361,1718038233900,-500.0,0.00019178,2]
[328975362,1718038233911,-500.0,0.00019178,2]
[328975363,1718038233921,-500.0,0.00019178,2]
[328975364,1718038233931,-238.30700054,0.00019178,2]
[328975397,1718038244976,-150.61391487,0.00019078,2]
[328975398,1718038244986,-261.69299946,0.00019178,2]
[328975399,1718038244997,-500.0,0.00019178,2]
[328975401,1718038245008,-500.0,0.00019178,2]
[328975402,1718038245018,-500.0,0.00019178,2]
[328975403,1718038245028,-500.0,0.00019178,2]
[328975404,1718038245039,-500.0,0.00019178,2]
[328975405,1718038245050,-500.0,0.00019178,2]
[328975406,1718038245060,-500.0,0.00019178,2]
[328975407,1718038245071,-500.0,0.00019178,2]
[328975408,1718038245081,-508.69997086,0.00019178,2]
[328975409,1718038245091,-500.0,0.00019178,2]
[328975410,1718038245101,-500.0,0.00019178,2]
[328975411,1718038245111,-500.0,0.00019178,2]
[328975412,1718038245122,-500.0,0.00019178,2]
[328975413,1718038245132,-500.0,0.00019178,2]
[328975414,1718038245142,-500.0,0.00019178,2]
[328975415,1718038245152,-500.0,0.00019178,2]
[328975416,1718038245162,-213.31496925,0.00019178,2]
[328975417,1718038245172,-154.71750607,0.00019178,2]
[328975418,1718038245182,-500.0,0.00019178,2]
[328975419,1718038245194,-611.10229344,0.00019178,2]
[328975420,1718038245204,-500.0,0.00019178,2]
[328975421,1718038245214,-500.0,0.00019178,2]
[328975422,1718038245225,-500.0,0.00019178,2]
[328975423,1718038245235,-500.0,0.00019178,2]
[328975424,1718038245245,-500.0,0.00019178,2]
[328975425,1718038245255,-501.96,0.00019178,2]
[328975426,1718038245265,-500.0,0.00019178,2]
[328975427,1718038245276,-500.0,0.00019178,2]
[328975428,1718038245293,-500.0,0.00019178,2]
[328975429,1718038245304,-500.0,0.00019178,2]
[328975430,1718038245314,-500.0,0.00019178,2]
[328975431,1718038245325,-500.0,0.00019178,2]
[328975432,1718038245335,-500.0,0.00019178,2]
[328975433,1718038245346,-500.0,0.00019178,2]
[328975434,1718038245357,-500.0,0.00019178,2]
[328975435,1718038245367,-500.0,0.00019178,2]
[328975436,1718038245378,-500.0,0.00019178,2]
[328975438,1718038245388,-500.0,0.00019178,2]
[328975439,1718038245398,-615.61,0.00019178,2]
[328975441,1718038245408,-500.0,0.00019178,2]
[328975443,1718038245419,-500.0,0.00019178,2]
[328975444,1718038245430,-500.0,0.00019178,2]
[328975445,1718038245441,-500.0,0.00019178,2]
[328975446,1718038245451,-500.0,0.00019178,2]
[328975447,1718038245462,-500.0,0.00019178,2]
[328975448,1718038245473,-500.0,0.00019178,2]
[328975449,1718038245485,-500.0,0.00019178,2]
[328975450,1718038245496,-500.0,0.00019178,2]
[328975451,1718038245506,-500.0,0.00019178,2]
[328975452,1718038245517,-500.0,0.00019178,2]
[328975453,1718038245527,-500.0,0.00019178,2]
[328975454,1718038245540,-500.0,0.00019178,2]
[328975455,1718038245550,-500.0,0.00019178,2]
[328975456,1718038245561,-500.0,0.00019178,2]
[328975457,1718038245572,-500.0,0.00019178,2]
[328975458,1718038245582,-500.0,0.00019178,2]
[328975459,1718038245593,-500.0,0.00019178,2]
[328975460,1718038245604,-385.06,0.00019178,2]
[328975461,1718038245615,-500.0,0.00019178,2]
[328975462,1718038245625,-500.0,0.00019178,2]
[328975463,1718038245636,-500.0,0.00019178,2]
[328975464,1718038245646,-500.0,0.00019178,2]
[328975465,1718038245657,-500.0,0.00019178,2]
[328975466,1718038245668,-500.0,0.00019178,2]
[328975467,1718038245678,-500.0,0.00019178,2]
[328975468,1718038245689,-500.0,0.00019178,2]
[328975469,1718038245700,-500.0,0.00019178,2]
[328975470,1718038245711,-500.0,0.00019178,2]
[328975471,1718038245721,-500.0,0.00019178,2]
[328975472,1718038245732,-500.0,0.00019178,2]
[328975473,1718038245741,-500.0,0.00019178,2]
[328975474,1718038245751,-501.69,0.00019178,2]
[328975475,1718038245764,-500.0,0.00019178,2]
[328975476,1718038245775,-500.0,0.00019178,2]
[328975477,1718038245785,-500.0,0.00019178,2]
[328975478,1718038245795,-500.0,0.00019178,2]
[328975479,1718038245808,-500.0,0.00019178,2]
[328975480,1718038245818,-500.0,0.00019178,2]
[328975481,1718038245829,-500.0,0.00019178,2]
[328975482,1718038245840,-604.62,0.00019178,2]
[328975483,1718038245850,-500.0,0.00019178,2]
[328975484,1718038245860,-500.0,0.00019178,2]
[328975486,1718038245870,-500.0,0.00019178,2]
[328975488,1718038245881,-506.29,0.00019178,2]
[328975490,1718038245892,-500.0,0.00019178,2]
[328975492,1718038245902,-232.14405161,0.00019178,2]
[328975493,1718038245912,-500.0,0.00019178,2]
[328975494,1718038245922,-500.0,0.00019178,2]
[328975495,1718038245933,-500.0,0.00019178,2]
[328975496,1718038245944,-776.98,0.00019178,2]
[328975497,1718038245954,-500.0,0.00019178,2]
[328975498,1718038245965,-500.0,0.00019178,2]
[328975499,1718038245975,-500.0,0.00019178,2]
[328975500,1718038245986,-500.0,0.00019178,2]
[328975501,1718038245996,-150.08548552,0.00019178,2]
[328975502,1718038246007,-500.0,0.00019178,2]
[328975503,1718038246018,-500.0,0.00019178,2]
[328975504,1718038246028,-500.0,0.00019178,2]
[328975505,1718038246039,-500.0,0.00019178,2]
[328975506,1718038246049,-500.0,0.00019178,2]
[328975507,1718038246060,-500.0,0.00019178,2]
[328975508,1718038246071,-500.0,0.00019178,2]
[328975509,1718038246081,-500.0,0.00019178,2]
[328975510,1718038246092,-399.55297499,0.00019178,2]
[328975511,1718038246102,-500.0,0.00019178,2]
[328975512,1718038246112,-500.0,0.00019178,2]
[328975513,1718038246122,-560.86,0.00019178,2]
[328975514,1718038246133,-500.0,0.00019178,2]
[328975515,1718038246143,-500.0,0.00019178,2]
[328975516,1718038246153,-872.64,0.00019178,2]
[328975517,1718038246164,-500.0,0.00019178,2]
[328975518,1718038246174,-500.0,0.00019178,2]
[328975519,1718038246184,-500.0,0.00019178,2]
[328975520,1718038246194,-500.0,0.00019178,2]
[328975521,1718038246204,-500.0,0.00019178,2]
[328975522,1718038246214,-500.0,0.00019178,2]
[328975523,1718038246224,-500.0,0.00019178,2]
[328975524,1718038246235,-500.0,0.00019178,2]
[328975525,1718038246245,-500.0,0.00019178,2]
[328975526,1718038246255,-500.0,0.00019178,2]
[328975527,1718038246265,-500.0,0.00019178,2]
[328975528,1718038246275,-500.0,0.00019178,2]
[328975529,1718038246285,-623.33,0.00019178,2]
[328975530,1718038246297,-500.0,0.00019178,2]
[328975532,1718038246307,-542.46,0.00019178,2]
[328975533,1718038246317,-500.0,0.00019178,2]
[328975534,1718038246327,-939.88,0.00019178,2]
[328975535,1718038246338,-1841.13,0.00019178,2]
[328975536,1718038246348,-500.0,0.00019178,2]
[328975537,1718038246359,-500.0,0.00019178,2]
[328975538,1718038246369,-500.0,0.00019178,2]
[328975539,1718038246379,-500.0,0.00019178,2]
[328975540,1718038246389,-500.0,0.00019178,2]
[328975541,1718038246400,-500.0,0.00019178,2]
[328975542,1718038246410,-500.0,0.00019178,2]
[328975543,1718038246420,-500.0,0.00019178,2]
[328975544,1718038246431,-889.38048359,0.00019178,2]
[328975546,1718038246448,-590.05951641,0.00019178,2]
[328975548,1718038246458,-138.39103503,0.00019178,2]
[328975551,1718038246475,-361.60896497,0.00019178,2]
[328975552,1718038246485,-1670.92,0.00019178,2]
[328975553,1718038246496,-522.25239558,0.00019178,2]
[328975554,1718038246506,-500.0,0.00019178,2]
[328975555,1718038246516,-314.54065001,0.00019178,2]
[328975556,1718038246527,-509.10602516,0.00019178,2]
[328975557,1718038246538,-500.0,0.00019178,2]
[328975558,1718038246549,-500.0,0.00019178,2]
[328975563,1718038246708,-500.0,0.00019178,2]
[328975564,1718038246730,-500.0,0.00019178,2]
[328975565,1718038246743,-625.3,0.00019178,2]
[328975566,1718038246755,-500.0,0.00019178,2]
[328975568,1718038246771,-555.0,0.00019178,2]
[328975570,1718038246783,-882.71,0.00019178,2]
[328975571,1718038246794,-3417.72,0.00019178,2]
[328975572,1718038246809,-500.0,0.00019178,2]
[328975573,1718038246820,-500.0,0.00019178,2]
[328975574,1718038246832,-500.0,0.00019178,2]
[328975575,1718038246845,-500.0,0.00019178,2]
[328975576,1718038246857,-500.0,0.00019178,2]
[328975577,1718038246870,-500.0,0.00019178,2]
[328975578,1718038246881,-500.0,0.00019178,2]
[328975579,1718038246893,-500.0,0.00019178,2]
[328975580,1718038246905,-500.0,0.00019178,2]
[328975581,1718038246917,-500.0,0.00019178,2]
[328975582,1718038246928,-500.0,0.00019178,2]
[328975584,1718038246939,-1041.97,0.00019178,2]
[328975585,1718038246950,-500.0,0.00019178,2]
[328975587,1718038246962,-500.0,0.00019178,2]
[328975588,1718038246973,-500.0,0.00019178,2]
[328975589,1718038246985,-500.0,0.00019178,2]
[328975590,1718038246996,-500.0,0.00019178,2]
[328975591,1718038247007,-500.0,0.00019178,2]
[328975592,1718038247018,-500.0,0.00019178,2]
[328975593,1718038247028,-500.0,0.00019178,2]
[328975594,1718038247040,-2416.77,0.00019178,2]
[328975595,1718038247050,-500.0,0.00019178,2]
[328975596,1718038247061,-500.0,0.00019178,2]
[328975598,1718038247072,-500.0,0.00019178,2]
[328975600,1718038247083,-500.0,0.00019178,2]
[328975602,1718038247093,-500.0,0.00019178,2]
[328975603,1718038247104,-833.65,0.00019178,2]
[328975605,1718038247114,-500.0,0.00019178,2]
[328975606,1718038247125,-611.8,0.00019178,2]
[328975607,1718038247135,-3756.04,0.00019178,2]
[328975608,1718038247146,-500.0,0.00019178,2]
[328975609,1718038247157,-500.0,0.00019178,2]
[328975610,1718038247167,-500.0,0.00019178,2]
[328975611,1718038247178,-500.0,0.00019178,2]
[328975612,1718038247188,-1774.79,0.00019178,2]
[328975613,1718038247199,-436.24438275,0.00019178,2]
[328975614,1718038247209,-500.0,0.00019178,2]
[328975615,1718038247220,-500.0,0.00019178,2]
[328975616,1718038247230,-500.0,0.00019178,2]
[328975617,1718038247241,-500.0,0.00019178,2]
[328975618,1718038247251,-500.0,0.00019178,2]
[328975619,1718038247262,-500.0,0.00019178,2]
[328975620,1718038247273,-500.0,0.00019178,2]
[328975621,1718038247285,-1672.38,0.00019178,2]
[328975622,1718038247298,-500.0,0.00019178,2]
[328975623,1718038247308,-500.0,0.00019178,2]
[328975624,1718038247319,-500.0,0.00019178,2]
[328975625,1718038247328,-500.0,0.00019178,2]
[328975626,1718038247338,-3183.21,0.00019178,2]
[328975627,1718038247348,-2603.59,0.00019178,2]
[328975628,1718038247359,-500.0,0.00019178,2]
[328975629,1718038247369,-500.0,0.00019178,2]
[328975630,1718038247380,-500.0,0.00019178,2]
[328975631,1718038247390,-500.0,0.00019178,2]
[328975632,1718038247400,-500.0,0.00019178,2]
[328975633,1718038247410,-611.48,0.00019178,2]
[328975634,1718038247420,-500.0,0.00019178,2]
[328975635,1718038247430,-500.0,0.00019178,2]
[328975636,1718038247440,-500.0,0.00019178,2]
[328975637,1718038247450,-500.0,0.00019178,2]
[328975638,1718038247461,-500.0,0.00019178,2]
[328975639,1718038247471,-500.0,0.00019178,2]
[328975640,1718038247481,-500.0,0.00019178,2]
[328975641,1718038247492,-160.194328,0.00019178,2]
[328975642,1718038247502,-160.0,0.00019322,2]
[328975643,1718038247512,-587.0,0.00019373,2]
[328975644,1718038247523,-500.0,0.00019452,2]
[328975645,1718038247533,-500.0,0.00019452,2]
[328975646,1718038247543,-500.0,0.00019452,2]
[328975647,1718038247554,-500.0,0.00019452,2]
[328975648,1718038247564,-500.0,0.00019452,2]
[328975649,1718038247574,-500.0,0.00019452,2]
[328975650,1718038247585,-500.0,0.00019452,2]
[328975651,1718038247595,-500.0,0.00019452,2]
[328975652,1718038247605,-442.0759564,0.00019452,2]
[328975653,1718038247614,-500.0,0.00019452,2]